Cogmind - Beta 10.2 *** ADVENTURER MODE // 2021.05.02 @ 17:28:35 Player: soymachine Result: Destroyed by G-67 Veteran with Plasma Rifle Performance ------------- Evolutions (7) 3500 Regions Visited (19) 3800 Robots Destroyed (249) 1245 Value Destroyed (11553) 11553 Prototype IDs (30) 600 Alien Tech Used (2) 400 Bonus (5320) 5320 TOTAL SCORE: 26418 Bonus ------- High Alert Combat Kills 1709 Follower Combat Kills 52 Aligned with FarCom 300 Met Warlord at Base 500 MAIN.C Attacked Warlord 500 Warlord Defense Kill 2548 Friendly Fire -289 Cogmind --------- Core Integrity 0/1300 Matter 209/300 Energy 100/100 System Corruption 21% Temperature Cool (12) Movement Core (200) Ox3 Location -3/Research Parts ------- > --- POWER (1) -------- (None) > --- PROPULSION (6) --- (None) > --- UTILITY (11) ----- (None) > --- WEAPON (3) ------- Fusion Bomb Launcher > --- INVENTORY (4) ---- Railgun Linear Accelerator Advanced Remote Datajack Peak State ------------ > --- POWER ------------ Reinforced Antimatter Reactor > --- PROPULSION ------- Advanced Medium Treads Advanced Medium Treads Improved Heavy Treads > --- UTILITY ---------- Advanced Heat Sink Advanced Cooling System High-capacity Storage Unit Advanced Energy Well Long-range Sensor Array Advanced Signal Interpreter Advanced Targeting Computer Improved Force Field Advanced Hacking Suite Advanced System Shield System Backup Module > --- WEAPON ----------- Long-range Proton Cannon Matter Neutralizer Heavy Gauss Cannon > --- INVENTORY -------- Transdimensional Reconstructor Tesla Rifle Heavy Disruptor Cannon Improved Proton Missile Launcher Heavy Shock Bomb Launcher Smartbomb Launcher Remote Datajack Molecular Deconstructor Great Axe [Rating: 116] Favorites ----------- Power Light Ion Engine Engine Light Ion Engine Power Core Cooled Fission Core Reactor Reinforced Antimatter Reactor Propulsion Armored Treads Treads Armored Treads Leg Flexi-carbon Leg Hover Unit Improved Antigrav System Flight Unit Impulse Thruster Utility High-capacity Storage Unit Device Advanced Heat Sink Storage High-capacity Storage Unit Processor Advanced Targeting Computer Hackware Advanced System Shield Protection Layered Medium Armor Plating Weapon Mini Grenade Launcher Energy Gun Phase Gun Energy Cannon Advanced Plasma Cannon Ballistic Gun KE Penetrator Ballistic Cannon Mass Driver Launcher Mini Grenade Launcher Special Weapon Remote Datajack Slashing Weapon Great Axe Piercing Weapon Lance Build | -11 -10 -9 -9 -9 -8 -8 -7 -6 -5 -5 -5 -5 -4 -4 -4 -4 -4 -3 -3 ------- Run | Scr Mat Mat Min Exi Min Mat Fac Fac Fac Upp Upp Zhi Pro Fac Upp Upp War Pro Res Slots Evolved 14 | . . 2 . . . 2 2 2 2 . . . . 2 . . . . 2 Power . | . . . . . . . . . . . . . . . . . . . . Propulsion 4 | . . 1 . . . 1 . . . . . . . . . . . . 2 Utility 9 | . . 1 . . . 1 2 1 2 . . . . 2 . . . . . Weapon 1 | . . . . . . . . 1 . . . . . . . . . . . Parts Attached 200 | . 10 7 4 7 6 6 11 9 10 2 . 4 14 36 6 3 15 5 45 Power 13 | . . . . . 1 1 1 . 2 . . 1 . 1 . 1 . . 5 Engine 3 | . . . . . 1 1 1 . . . . . . . . . . . . Core 3 | . . . . . . . . . 2 . . . . . . . . . 1 Reactor 7 | . . . . . . . . . . . . 1 . 1 . 1 . . 4 Propulsion 37 | . 2 1 . 1 . 4 . . . . . . 2 9 . 1 4 1 12 Treads 18 | . 2 1 . 1 . 4 . . . . . . 2 4 . . . . 4 Leg 11 | . . . . . . . . . . . . . . 5 . 1 4 1 . Wheel . | . . . . . . . . . . . . . . . . . . . . Hover 6 | . . . . . . . . . . . . . . . . . . . 6 Flight 2 | . . . . . . . . . . . . . . . . . . . 2 Utility 48 | . 3 2 2 2 2 . 5 2 2 . . 3 2 8 1 1 4 1 8 Device 30 | . 1 1 2 1 1 . 4 2 1 . . 1 2 6 . 1 2 1 4 Storage 4 | . 2 . . . . . . . . . . 1 . . . . . . 1 Processor 10 | . . 1 . 1 1 . 1 . . . . . . 2 . . 2 . 2 Hackware 2 | . . . . . . . . . 1 . . 1 . . . . . . . Protection 2 | . . . . . . . . . . . . . . . 1 . . . 1 Artifact . | . . . . . . . . . . . . . . . . . . . . Weapon 102 | . 5 4 2 4 3 1 5 7 6 2 . . 10 18 5 . 7 3 20 Energy Gun 33 | . 2 3 . . 2 . 2 1 . . . . 3 6 2 . 4 . 8 Energy Cannon 15 | . . . . . . 1 . 3 2 . . . 1 5 . . . . 3 Ballistic Gun 7 | . . . . . . . 1 1 . . . . 1 . 1 . . . 3 Ballistic Cannon 9 | . . . . . . . 1 1 2 . . . 2 1 . . . . 2 Launcher 25 | . 3 1 2 2 1 . 1 . 2 1 . . 3 2 2 . 2 1 2 Special Weapon 6 | . . . . 2 . . . . . . . . . 3 . . . 1 . Impact Weapon . | . . . . . . . . . . . . . . . . . . . . Slashing Weapon 4 | . . . . . . . . 1 . 1 . . . 1 . . 1 . . Piercing Weapon 3 | . . . . . . . . . . . . . . . . . . 1 2 Special Melee Weapon . | . . . . . . . . . . . . . . . . . . . . Unidentified Prototypes 18 | . . . 1 3 . . . 1 1 . . 4 . 3 . . 3 . 2 Parts Lost 74 | . . 1 . 4 . . . . . . . . 1 14 2 2 24 1 25 Power 5 | . . . . 1 . . . . . . . . . . . 1 1 . 2 Propulsion 18 | . . . . 2 . . . . . . . . . 1 . 1 7 . 7 Utility 28 | . . 1 . . . . . . . . . . 1 6 1 . 10 1 8 Weapon 23 | . . . . 1 . . . . . . . . . 7 1 . 6 . 8 Highest Loss Streak 17 | . . 1 . 4 . . . . . . . . 1 4 1 2 17 1 9 Average Slot Usage (%) 88 | . 96 86 100 91 86 83 92 98 95 97 94 93 95 83 97 97 96 42 46 Engine 3 | . 14 11 11 10 11 9 7 6 1 . . . . . . . . . . Reactor 2 | . . . . . . . . . . . . 1 5 4 5 5 5 . 2 Treads 16 | . 16 31 33 33 22 29 30 26 23 23 23 23 19 9 . . . . 2 Leg 5 | . 11 . . . . . . . . . . . . 6 21 21 19 4 1 Device 15 | . 10 10 11 3 9 9 16 25 27 29 29 23 16 15 12 13 14 6 6 Storage 7 | . 14 11 11 11 11 9 7 6 5 5 5 7 11 10 9 5 5 . . Processor 12 | . . 1 11 11 11 9 13 13 11 11 11 11 11 13 21 21 20 10 11 Hackware 4 | . . . . . . . . . 2 5 5 7 11 10 10 10 9 5 1 Energy Gun 4 | . 6 20 7 . 6 10 6 4 1 . . . 6 2 4 5 5 . 2 Energy Cannon 1 | . . . . . . 7 1 3 9 6 . . . 3 . . . . . Ballistic Gun 2 | . 17 . . . . . 1 2 . . . . 2 . 4 5 4 . . Ballistic Cannon 1 | . . . . . . . 4 6 4 4 . . 3 2 . . . . 1 Launcher 4 | . 3 2 14 21 15 . . . . 2 5 5 1 . 3 5 4 4 . Naked Turns 32 | . . . . . . . . . . . . . . . . . . . 32 Heaviest Build 108 | 10 41 41 40 44 40 46 56 67 78 78 64 68 77 108 94 91 91 18 65 Greatest Support 140 | 20 40 60 60 60 40 80 80 80 80 80 80 80 140 140 85 85 80 20 119 Greatest Overweight (x) 13 | . 1 1 . . . 1 . . . . . . 1 3 1 1 5 . 13 Average Overweight (x) . | . . . . . . . . . . . . . . . 1 . . . . Largest Inventory Capacity 12 | . 12 12 12 12 12 12 12 12 12 12 12 12 12 12 12 12 12 4 4 Average Capacity 10 | . 8 12 12 12 12 12 12 12 12 12 12 12 12 12 12 12 11 4 4 Most Carried 12 | . 10 12 11 12 10 12 12 12 12 12 12 12 12 12 12 12 12 4 4 Average Carried 10 | . 7 10 10 11 8 10 11 11 11 11 11 11 11 10 10 10 10 2 3 Final Capacity 12 | 6 12 12 12 12 12 12 12 12 12 12 12 12 12 12 12 12 4 4 4 Final Carried 12 | 6 10 10 11 11 8 12 12 12 12 12 11 12 9 11 10 11 4 3 3 Class Distribution -------------------- 32% | Mutant 29% | Hacker-Bomber 16% | Hacker-Mutant 8% | Hacker-Skirmisher 8% | Skirmisher Dominant Class ---------------- Mutant | -10/Materials Mutant | -9/Materials Mutant | -9/Mines Mutant | -9/Exiles Mutant | -8/Mines Mutant | -8/Materials Mutant | -7/Factory Skirmisher | -6/Factory Skirmisher | -5/Factory Hacker-Skirmisher | -5/Upper Caves Hacker-Mutant | -5/Upper Caves Hacker-Mutant | -5/Zhirov Hacker-Bomber | -4/Proximity Caves Hacker-Bomber | -4/Factory Hacker-Bomber | -4/Upper Caves Hacker-Bomber | -4/Upper Caves Hacker-Bomber | -4/Warlord Hacker-Mutant | -3/Proximity Caves Scavenger-Mutant | -3/Research Resources | -11 -10 -9 -9 -9 -8 -8 -7 -6 -5 -5 -5 -5 -4 -4 -4 -4 -4 -3 -3 ----------- Run | Scr Mat Mat Min Exi Min Mat Fac Fac Fac Upp Upp Zhi Pro Fac Upp Upp War Pro Res Matter Collected 4976 | 200 115 57 21 . 285 103 222 264 313 71 46 . 371 1296 266 240 277 14 815 Remotely . | . . . . . . . . . . . . . . . . . . . . Salvage Created 10733 | . 297 160 120 6 148 255 243 570 834 68 8 . 291 4024 343 512 1063 . 1791 Parts 501 | . 31 14 9 . 8 12 16 23 45 2 1 . 21 143 19 14 56 . 87 Haulers Intercepted . | . . . . . . . . . . . . . . . . . . . . Recyclers Shooed 3 | . . . . . . . 1 . 1 . . . . 1 . . . . . Parts Field Recycled . | . . . . . . . . . . . . . . . . . . . . Retrieved Matter . | . . . . . . . . . . . . . . . . . . . . Parts Self-Destructed 163 | . . . . . . . . . . 2 . . 8 . 12 6 135 . . Prevented 83 | . . . . . . . . . . . . . 6 . . . 77 . . Kills | -11 -10 -9 -9 -9 -8 -8 -7 -6 -5 -5 -5 -5 -4 -4 -4 -4 -4 -3 -3 ------- Run | Scr Mat Mat Min Exi Min Mat Fac Fac Fac Upp Upp Zhi Pro Fac Upp Upp War Pro Res Combat Hostiles Destroyed 183 | . 8 4 3 3 3 2 7 7 16 4 3 . 11 49 11 11 19 . 22 Melee 7 | . . . . . . . . . . . 1 . . 3 . . . . 3 Guns 46 | . 3 . . . . . 2 3 . . . . 1 8 4 3 13 . 9 Cannons 42 | . . . . . . 2 4 4 10 4 . . 2 14 . . . . 2 AOE 68 | . 5 4 3 3 3 . 1 . 6 . 2 . 7 7 7 8 5 . 7 Classes Destroyed 17 | . 6 1 2 1 . . 3 . . . 1 . 1 1 . . 1 . . Worker 12 | . 1 . . . . . . 1 1 . . . . 8 . . . . 1 Builder 26 | . 3 1 . . . . 1 1 4 . . . . 15 . . . . 1 Tunneler 1 | . . . 1 . . . . . . . . . . . . . . . . Recycler 16 | . 1 . 1 . 2 1 . 1 1 . . . . 5 . . . . 4 Watcher 13 | . 2 . . . . 1 . 1 2 . . . . 6 . . . . 1 Swarmer 35 | . 3 . . . 3 . 2 . 5 4 . . 7 . 4 . 3 . 4 Grunt 54 | . 5 2 2 . . . . 2 . . . . . 28 4 4 5 . 2 Brawler 6 | . . . 1 . . . . . . . . . . . 1 2 2 . . Duelist 5 | . . . . . . . 1 . . . 1 . . 1 . . 1 . 1 Protector 2 | . . . . . . . . . . . . . . 1 . . 1 . . Sentry 16 | . . 2 . . . 2 . 2 2 . . . . 3 . 1 . . 4 Hunter 6 | . . . . . . . 1 1 2 . . . . 2 . . . . . Programmer 47 | . . . . . . . 3 3 7 . . . 3 14 2 . 4 . 11 Behemoth 1 | . . . . . . . . . . . . . 1 . . . . . . Striker 2 | . . . . . . . . . . . . . . . . . 2 . . Master Thief 2 | . . . . . . . . . . . 2 . . . . . . . . Assembled 3 | . . . . 3 . . . . . . . . . . . . . . . Thug 1 | . . . . . . . . . . . . . . . . 1 . . . Butcher 3 | . . . . . . . . . . . . . . . . 3 . . . Bouncer 1 | . . . . . . . . . . . . . . . . . 1 . . Best Kill Streak 16 | . 12 4 5 3 3 2 3 2 13 4 2 . 4 16 4 4 6 . 6 Combat Bots Only 10 | . 7 3 3 3 3 2 3 2 7 4 2 . 4 10 4 4 6 . 5 Max Kills in Single Turn 6 | . 3 2 3 3 3 1 1 2 6 1 1 . 3 6 3 3 2 . 3 Gunslinging 1 | . . . . . . . . . . . . . . . . . 1 . . Exploded 4 | . 2 2 2 3 3 . 1 . 4 . 1 . 3 1 2 2 2 . 2 Melee 1 | . . . . . . . . . . . 1 . . 1 . . . . 1 Uniques/NPCs Destroyed . | . . . . . . . . . . . . . . . . . . . . Combat | -11 -10 -9 -9 -9 -8 -8 -7 -6 -5 -5 -5 -5 -4 -4 -4 -4 -4 -3 -3 -------- Run | Scr Mat Mat Min Exi Min Mat Fac Fac Fac Upp Upp Zhi Pro Fac Upp Upp War Pro Res Damage Taken 13056 | . 55 167 36 577 62 79 281 172 573 179 116 . 616 3404 434 279 2223 24 3779 Core 2715 | . 8 9 9 101 21 . 71 . 99 33 21 . 88 374 86 22 469 . 1304 Absorbed by Shields 849 | . . . . . . . . . . . . . . 545 . 14 290 . . Core Remaining (%) 79 | 100 96 . . . 65 100 89 100 . . . . 75 . . . . 10 . Volleys Fired 405 | . 21 7 3 2 6 7 30 13 26 6 7 . 19 147 11 12 36 . 52 Largest 3 | . 2 2 2 2 2 2 2 3 3 3 1 . 3 3 3 3 3 . 3 Hottest 253 | . 80 96 60 60 80 103 117 203 253 253 46 . 227 247 209 170 209 . 227 Shots Fired 885 | . 42 14 6 3 11 14 60 39 77 18 7 . 46 284 31 34 82 1 116 Gun 427 | . 38 12 . . 10 8 36 15 . . . . 19 97 22 23 72 . 75 Cannon 330 | . . . . . . 6 23 24 73 18 . . 16 139 . . . . 31 Launcher 99 | . 4 2 6 2 1 . 1 . 4 . 7 . 11 20 9 11 10 1 10 Special 29 | . . . . 1 . . . . . . . . . 28 . . . . . Kinetic 257 | . 32 . . . . . 29 18 25 6 . . 11 49 11 12 30 . 34 Thermal 235 | . . 1 . . . . 16 12 48 12 . . 7 63 11 11 17 . 37 Explosive 76 | . 4 2 6 2 1 . 1 . 4 . 7 . 6 12 9 11 1 . 10 Electromagnetic 263 | . 6 11 . . 10 14 14 9 . . . . 22 132 . . 9 1 35 Entropic 25 | . . . . . . . . . . . . . . . . . 25 . . Robot Hit Streak 73 | . 8 6 7 8 5 17 36 21 57 7 12 . 32 73 9 27 17 . 39 Robot Miss Streak 4 | . 1 2 . 1 2 1 3 2 1 1 . . 1 2 3 1 4 . 1 Penetration Max 1 | . . . . . . . . . . . . . . 1 . 1 1 . . Secondary Targets 7 | . . . . . . . . . . . . . . 2 . . 5 . . Max Gunslinging Chain 1 | . . . . . . . . . . . . . . 1 . . 1 . . Shots Hit Robots 730 | . 12 11 4 1 7 13 50 28 63 12 11 . 39 259 16 28 64 . 112 Core Hits 487 | . 19 6 6 12 6 6 15 22 48 4 5 . 17 137 19 31 66 1 67 Critical Hits 36 | . . . . . . . 3 . . . . . 2 17 . . 5 . 9 Critical Kills 14 | . . . . . . . 1 . . . . . 1 7 . . 1 . 4 Critical Parts Destroyed 20 | . . . . . . . 2 . . . . . 1 8 . . 4 . 5 Melee Attacks 57 | . . . . . . . . 7 . 1 4 . . 18 . . 2 4 21 Impact . | . . . . . . . . . . . . . . . . . . . . Slashing 32 | . . . . . . . . 7 . 1 4 . . 18 . . 2 . . Piercing 25 | . . . . . . . . . . . . . . . . . . 4 21 Sneak Attacks 3 | . . . . . . . . . . . . . . . . . . . 3 Combat Hostiles . | . . . . . . . . . . . . . . . . . . . . Follow-up Attacks . | . . . . . . . . . . . . . . . . . . . . Damage Inflicted 32736 | . 901 382 457 226 272 262 1309 912 3185 338 833 . 1732 9817 1432 1639 3498 10 5531 Guns 8659 | . 161 87 . . 80 94 574 341 . . . . 230 2345 372 510 2203 . 1662 Cannons 9302 | . . . . . . 168 550 571 2241 338 . . 546 4007 . . . . 881 Explosions 13162 | . 740 295 457 226 192 . 185 . 944 . 683 . 956 2848 1060 1129 1295 10 2142 Melee 1613 | . . . . . . . . . . . 150 . . 617 . . . . 846 Ramming . | . . . . . . . . . . . . . . . . . . . . Kinetic 5418 | . 112 . . . . . 700 335 657 99 . . 202 1553 182 227 548 . 803 Thermal 8756 | . . 162 145 . 76 . 404 331 1584 239 . . 359 2732 190 283 880 . 1371 Explosive 9795 | . 740 133 312 226 116 . 26 . 944 . 683 . 873 1417 1060 1129 243 . 1893 Electromagnetic 5846 | . 49 87 . . 80 262 179 246 . . . . 298 3498 . . 519 10 618 Impact . | . . . . . . . . . . . . . . . . . . . . Slashing 767 | . . . . . . . . . . . 150 . . 617 . . . . . Piercing 846 | . . . . . . . . . . . . . . . . . . . 846 Entropic 1308 | . . . . . . . . . . . . . . . . . 1308 . . Highest Corruption 21 | . . . . . . . 1 . 3 3 3 3 9 5 3 . 6 6 21 Average Corruption 4 | . . . . . . . 1 . 2 3 3 3 4 3 1 . 5 6 15 Corruption Purged 12 | . . . . . . . 2 . . . . . . 6 4 . . . . Effects 185 | . . . . . . . 1 . 13 8 11 5 28 22 . . 16 24 57 Message Errors 32 | . . . . . . . 1 . 5 1 2 2 6 2 . . . 10 3 Matter Fused 39 | . . . . . . . . . 1 1 5 2 9 4 . . 3 6 8 Heat Flow Errors 13 | . . . . . . . . . . 1 1 . 2 3 . . . 3 3 Energy Discharges 15 | . . . . . . . . . 2 1 1 . 4 2 . . 1 . 4 Parts Rejected 1 | . . . . . . . . . . . . . . . . . 1 . . Data Loss (minor) 21 | . . . . . . . . . 3 2 2 1 3 2 . . 2 1 5 Data Loss (major) 7 | . . . . . . . . . . . . . 1 1 . . 1 2 2 Misfires 5 | . . . . . . . . . . . . . 1 . . . 2 1 1 Alerts 1 | . . . . . . . . . . . . . . . . . . . 1 Misdirections 13 | . . . . . . . . . . . . . . . . . . . 13 Targeting Errors 32 | . . . . . . . . . 1 2 . . 2 8 . . 5 1 13 Weapon Failures 6 | . . . . . . . . . 1 . . . . . . . 1 . 4 Overload Shots . | . . . . . . . . . . . . . . . . . . . . Overflow Damage 1195 | . 29 8 9 . 2 7 99 6 190 10 117 . 111 326 40 . . 2 239 Projectiles 367 | . . . . . . 7 55 6 112 10 . . 47 117 . . . . 13 Explosions 781 | . 29 8 9 . 2 . 44 . 78 . 107 . 64 185 40 . . 2 213 Melee 47 | . . . . . . . . . . . 10 . . 24 . . . . 13 Knockbacks 27 | . . . . . . . 4 3 5 . . . 4 9 . . . . 2 Impact . | . . . . . . . . . . . . . . . . . . . . Kinetic 26 | . . . . . . . 4 3 5 . . . 4 8 . . . . 2 Secondary 1 | . . . . . . . . . . . . . . 1 . . . . . Self-Inflicted Damage 629 | . . 25 . 13 31 . . . . . 94 . 34 226 60 . 7 24 115 Shots 22 | . . 1 . 1 2 . . . . . 2 . 2 9 1 . 1 1 2 Rammed . | . . . . . . . . . . . . . . . . . . . . Targets Rammed . | . . . . . . . . . . . . . . . . . . . . Kicked . | . . . . . . . . . . . . . . . . . . . . Crushed . | . . . . . . . . . . . . . . . . . . . . Highest Temperature 403 | . 24 63 3 12 39 126 192 194 199 198 197 . 396 403 106 90 327 236 295 Average Temperature 73 | . 9 30 3 12 18 53 64 68 115 130 112 . 130 45 40 35 52 107 87 Received Heat Transfer 1860 | . 36 60 24 60 . 27 . 39 27 . . . 36 745 33 36 197 . 540 Effects 10 | . . . . . . . . . . . . . 7 . . . . . 3 Shutdowns 1 | . . . . . . . . . . . . . 1 . . . . . . Energy Bleed 1 | . . . . . . . . . . . . . 1 . . . . . . Interference 7 | . . . . . . . . . . . . . 4 . . . . . 3 Damage (minor) 1 | . . . . . . . . . . . . . 1 . . . . . . Siege Activations . | . . . . . . . . . . . . . . . . . . . . Robots Corrupted 11 | . . . . . . . . . . . . . 1 9 . . 1 . . Combat Hostiles 10 | . . . . . . . . . . . . . 1 8 . . 1 . . Parts Fried 36 | . . . . . . 5 . 1 . . . . 1 21 . . 3 . 5 Impact Corruptions . | . . . . . . . . . . . . . . . . . . . . Robots Melted 1 | . . . . . . . . . . . . . . . . . . . 1 Combat Hostiles 1 | . . . . . . . . . . . . . . . . . . . 1 Parts Melted 27 | . . . . . . . . 1 8 . . . . 2 . . 3 . 13 Heat Transferred 10236 | . . 200 150 . 100 . 507 407 2200 350 . . 222 3040 222 370 778 . 1690 Parts Sabotaged . | . . . . . . . . . . . . . . . . . . . . Parts Stolen 1 | . . . . . . . . . . . 1 . . . . . . . . Parts Stripped . | . . . . . . . . . . . . . . . . . . . . Power Chain Reactions 17 | . . 2 . . 1 . . . . . . . . 3 . . 10 . 1 Missiles Intercepted . | . . . . . . . . . . . . . . . . . . . . Alert | -11 -10 -9 -9 -9 -8 -8 -7 -6 -5 -5 -5 -5 -4 -4 -4 -4 -4 -3 -3 ------- Run | Scr Mat Mat Min Exi Min Mat Fac Fac Fac Upp Upp Zhi Pro Fac Upp Upp War Pro Res Peak Influence 1219 | . 238 229 168 . 92 110 127 238 432 . . . . 1219 . . . . 720 Initial 85 | . . 85 75 . . . 2 53 74 . . . . 68 . . . . . Average 229 | . 106 134 61 . 77 12 33 81 227 . . . . 628 . . . . 262 Maximum Alert Level 4 | . 1 1 . . . . . 1 2 . . . . 4 . . . . 3 Low Security (%) 65 | . 63 79 100 . 100 100 100 95 36 . . . . 26 . . . . 46 Level 1 16 | . 36 20 . . . . . 4 61 . . . . 9 . . . . 23 Level 2 6 | . . . . . . . . . 1 . . . . 15 . . . . 28 Level 3 8 | . . . . . . . . . . . . . . 39 . . . . . Level 4 2 | . . . . . . . . . . . . . . 10 . . . . . Level 5 . | . . . . . . . . . . . . . . . . . . . . High Security . | . . . . . . . . . . . . . . . . . . . . Max Security . | . . . . . . . . . . . . . . . . . . . . Squads Dispatched 37 | . . 2 . . . . 3 4 5 . . . . 14 . . . . 9 Investigation 1 | . . . . . . . . . . . . . . 1 . . . . . Extermination 18 | . . . . . . . 3 4 2 . . . . 5 . . . . 4 Reinforcement 12 | . . 2 . . . . . . 3 . . . . 5 . . . . 2 Assault 6 | . . . . . . . . . . . . . . 3 . . . . 3 Garrison . | . . . . . . . . . . . . . . . . . . . . Intercept . | . . . . . . . . . . . . . . . . . . . . Construction Impeded 6 | . . 1 . . . . . . 1 . . . . 4 . . . . . Haulers Reinforced 1 | . . . . . . . . . . . . . . . . . . . 1 Stealth | -11 -10 -9 -9 -9 -8 -8 -7 -6 -5 -5 -5 -5 -4 -4 -4 -4 -4 -3 -3 --------- Run | Scr Mat Mat Min Exi Min Mat Fac Fac Fac Upp Upp Zhi Pro Fac Upp Upp War Pro Res Distress Signals 12 | . . 1 . . . 2 . . 1 . . . . 6 . . 2 . . Communications Jammed 30 | . . . . . . . . . . . . . . . . . . . 30 Distress Signals 30 | . . . . . . . . . . . . . . . . . . . 30 Times Spotted 313 | . 12 6 3 8 3 7 12 7 17 4 4 . 8 83 12 11 64 . 52 Peak Tracking Total 17 | . 5 4 3 9 3 4 3 2 6 4 3 . 4 8 4 4 17 . 13 Tactical Retreats 25 | . . . . . . . 1 . . . . . 1 5 1 . 7 . 10 Traps | -11 -10 -9 -9 -9 -8 -8 -7 -6 -5 -5 -5 -5 -4 -4 -4 -4 -4 -3 -3 ------- Run | Scr Mat Mat Min Exi Min Mat Fac Fac Fac Upp Upp Zhi Pro Fac Upp Upp War Pro Res Traps Triggered 6 | . . . . . . . 2 1 1 . . . . 1 . . . . 1 Indirectly . | . . . . . . . . . . . . . . . . . . . . Trap Hack Attempts . | . . . . . . . . . . . . . . . . . . . . Triggered . | . . . . . . . . . . . . . . . . . . . . Disarmed . | . . . . . . . . . . . . . . . . . . . . Reprogrammed . | . . . . . . . . . . . . . . . . . . . . Reused . | . . . . . . . . . . . . . . . . . . . . Traps Extracted . | . . . . . . . . . . . . . . . . . . . . Installed . | . . . . . . . . . . . . . . . . . . . . Triggered 29 | . . . . . . . . . . . . . . 1 . . 27 . 1 Machines | -11 -10 -9 -9 -9 -8 -8 -7 -6 -5 -5 -5 -5 -4 -4 -4 -4 -4 -3 -3 ---------- Run | Scr Mat Mat Min Exi Min Mat Fac Fac Fac Upp Upp Zhi Pro Fac Upp Upp War Pro Res Machines Disabled 47 | . 5 1 1 1 . . 7 8 5 1 . . . 17 . . 1 . . Max in Single Turn 7 | . 2 1 1 1 . . 5 7 1 1 . . . 6 . . 1 . . Machines Sabotaged . | . . . . . . . . . . . . . . . . . . . . Garrisons Compromised . | . . . . . . . . . . . . . . . . . . . . Overloaded Fab Kills . | . . . . . . . . . . . . . . . . . . . . Fab Network Shutdowns . | . . . . . . . . . . . . . . . . . . . . Hacking | -11 -10 -9 -9 -9 -8 -8 -7 -6 -5 -5 -5 -5 -4 -4 -4 -4 -4 -3 -3 --------- Run | Scr Mat Mat Min Exi Min Mat Fac Fac Fac Upp Upp Zhi Pro Fac Upp Upp War Pro Res Machines Accessed 22 | . 2 . 1 1 . 2 2 3 1 . . . . 6 . . 3 . 1 Terminals 9 | . 2 . 1 . . . . 1 1 . . . . 3 . . . . 1 Fabricators 5 | . . . . . . . 1 2 . . . . . 2 . . . . . Repair Stations 1 | . . . . . . . 1 . . . . . . . . . . . . Recycling Units 1 | . . . . . . 1 . . . . . . . . . . . . . Scanalyzers 2 | . . . . . . 1 . . . . . . . 1 . . . . . Garrison Access . | . . . . . . . . . . . . . . . . . . . . Total Hacks 62 | . 4 . 3 7 . 4 4 6 6 . . . . 19 . . 7 . 2 Successful 45 | . 4 . 1 7 . 4 1 3 4 . . . . 13 . . 7 . 1 Failed 17 | . . . 2 . . . 3 3 2 . . . . 6 . . . . 1 Catastrophic 1 | . . . . . . . . . . . . . . 1 . . . . . Database Lockouts . | . . . . . . . . . . . . . . . . . . . . Manual 8 | . . . . 2 . 1 . . . 1 . . . 1 . . 3 . . Terminals 26 | . 4 . 3 . . . . 2 6 . . . . 9 . . . . 2 Fabricators 13 | . . . . . . . 2 4 . . . . . 7 . . . . . Repair Stations 2 | . . . . . . . 2 . . . . . . . . . . . . Recycling Units 1 | . . . . . . 1 . . . . . . . . . . . . . Scanalyzers 6 | . . . . . . 3 . . . . . . . 3 . . . . . Garrison Access . | . . . . . . . . . . . . . . . . . . . . Terminal Hacks 30 | . 4 . 1 7 . . . 2 4 . . . . 4 . . 7 . 1 Record 8 | . . . . 7 . . . . . . . . . . . . . . 1 Prototype ID Bank 7 | . 1 . . . . . . . . . . . . 1 . . 5 . . Open Door 2 | . . . . . . . . . . . . . . . . . 2 . . Scanalyzer Index 1 | . . . . . . . . . 1 . . . . . . . . . . Locate Traps 4 | . 1 . . . . . . 1 1 . . . . 1 . . . . . Dispatch Records 2 | . . . . . . . . 1 1 . . . . . . . . . . Patrol Status 1 | . 1 . . . . . . . . . . . . . . . . . . Hauler Manifests 1 | . . . . . . . . . . . . . . 1 . . . . . Zone Layout 4 | . 1 . 1 . . . . . 1 . . . . 1 . . . . . Fabricator Hacks 7 | . . . . . . . . 1 . . . . . 6 . . . . . Network Status 1 | . . . . . . . . . . . . . . 1 . . . . . Load Schematic 1 | . . . . . . . . . . . . . . 1 . . . . . Build 5 | . . . . . . . . 1 . . . . . 4 . . . . . Repair Station Hacks 1 | . . . . . . . 1 . . . . . . . . . . . . Scan Component 1 | . . . . . . . 1 . . . . . . . . . . . . Recycling Unit Hacks 1 | . . . . . . 1 . . . . . . . . . . . . . Report Inventory 1 | . . . . . . 1 . . . . . . . . . . . . . Scanalyzer 6 | . . . . . . 3 . . . . . . . 3 . . . . . Insert Component 4 | . . . . . . 2 . . . . . . . 2 . . . . . Analyze 2 | . . . . . . 1 . . . . . . . 1 . . . . . Garrison Access Hacks . | . . . . . . . . . . . . . . . . . . . . Unauthorized Hacks . | . . . . . . . . . . . . . . . . . . . . Terminals . | . . . . . . . . . . . . . . . . . . . . Fabricators . | . . . . . . . . . . . . . . . . . . . . Repair Stations . | . . . . . . . . . . . . . . . . . . . . Recycling Units . | . . . . . . . . . . . . . . . . . . . . Scanalyzers . | . . . . . . . . . . . . . . . . . . . . Garrison Access . | . . . . . . . . . . . . . . . . . . . . Data Cores Recovered . | . . . . . . . . . . . . . . . . . . . . Used . | . . . . . . . . . . . . . . . . . . . . Hacking Detections 14 | . 2 . 1 . . 1 2 3 . . . . . 4 . . . . 1 Full Trace Events 1 | . . . . . . . . . . . . . . 1 . . . . . Feedback Events . | . . . . . . . . . . . . . . . . . . . . Feedback Blocked . | . . . . . . . . . . . . . . . . . . . . Robot Schematics Acquired . | . . . . . . . . . . . . . . . . . . . . Robots Built 4 | . . . . . . . . 3 . . . . . 1 . . . . . Matter 438 | . . . . . . . . 285 . . . . . 153 . . . . . Time 131 | . . . . . . . . 50 . . . . . 81 . . . . . Total Robot Build Rating 16 | . . . . . . . . 15 . . . . . 1 . . . . . Part Schematics Acquired 2 | . . . . . . 1 . . . . . . . 1 . . . . . Parts Built . | . . . . . . . . . . . . . . . . . . . . Matter . | . . . . . . . . . . . . . . . . . . . . Time . | . . . . . . . . . . . . . . . . . . . . Total Part Build Rating . | . . . . . . . . . . . . . . . . . . . . Parts Repaired . | . . . . . . . . . . . . . . . . . . . . Time . | . . . . . . . . . . . . . . . . . . . . Parts Recycled . | . . . . . . . . . . . . . . . . . . . . Recycled Matter . | . . . . . . . . . . . . . . . . . . . . Retrieved Matter . | . . . . . . . . . . . . . . . . . . . . Retrieved Components . | . . . . . . . . . . . . . . . . . . . . Parts Scanalyzed 2 | . . . . . . 1 . . . . . . . 1 . . . . . Part Schematics Acquired 2 | . . . . . . 1 . . . . . . . 1 . . . . . Parts Damaged . | . . . . . . . . . . . . . . . . . . . . Bothacking | -11 -10 -9 -9 -9 -8 -8 -7 -6 -5 -5 -5 -5 -4 -4 -4 -4 -4 -3 -3 ------------ Run | Scr Mat Mat Min Exi Min Mat Fac Fac Fac Upp Upp Zhi Pro Fac Upp Upp War Pro Res Used RIF Installer . | . . . . . . . . . . . . . . . . . . . . Robots Hacked . | . . . . . . . . . . . . . . . . . . . . Non-combat . | . . . . . . . . . . . . . . . . . . . . Combat . | . . . . . . . . . . . . . . . . . . . . Robot Hacks Applied . | . . . . . . . . . . . . . . . . . . . . Relay Couplers Released . | . . . . . . . . . . . . . . . . . . . . Robots Rewired . | . . . . . . . . . . . . . . . . . . . . Allies Hacked 1 | . . . . . . . . . . . . . . 1 . . . . . Hacks Repelled 2 | . . . . . . . . . . . . . . 2 . . . . . Allies | -11 -10 -9 -9 -9 -8 -8 -7 -6 -5 -5 -5 -5 -4 -4 -4 -4 -4 -3 -3 -------- Run | Scr Mat Mat Min Exi Min Mat Fac Fac Fac Upp Upp Zhi Pro Fac Upp Upp War Pro Res Total Allies 7 | . . . . . . . . 3 . . . . . 4 . . . . . Largest Group 3 | . . . . . . . . 3 1 . . . . 3 . . . . . Highest-Rated Group 138 | . . . . . . . . 87 29 . . . . 138 . . . . . Highest-Rated Ally 46 | . . . . . . . . 29 29 . . . . 46 . . . . . Total Orders 4 | . . . . . . . . . . . . . . 4 . . . . . FOLLOW 1 | . . . . . . . . . . . . . . 1 . . . . . DROP 1 | . . . . . . . . . . . . . . 1 . . . . . PICKUP 1 | . . . . . . . . . . . . . . 1 . . . . . COLLECT 1 | . . . . . . . . . . . . . . 1 . . . . . Ally Attacks 27 | . . . . . . . . 11 7 . . . . 9 . . . . . Total Damage 690 | . . . . . . . . 191 116 . . . . 383 . . . . . Kills 1 | . . . . . . . . . . . . . . 1 . . . . . Allies Corrupted 3 | . . . . . . . . . . . . . . 3 . . . . . Allies Melted . | . . . . . . . . . . . . . . . . . . . . Intel | -11 -10 -9 -9 -9 -8 -8 -7 -6 -5 -5 -5 -5 -4 -4 -4 -4 -4 -3 -3 ------- Run | Scr Mat Mat Min Exi Min Mat Fac Fac Fac Upp Upp Zhi Pro Fac Upp Upp War Pro Res Robot Analysis Total . | . . . . . . . . . . . . . . . . . . . . Derelict Logs Recovered 8 | . . . . . . . . . . 2 . . 2 . 2 2 . . . Drone Launches . | . . . . . . . . . . . . . . . . . . . . Drone Recoveries . | . . . . . . . . . . . . . . . . . . . . Exploration | -11 -10 -9 -9 -9 -8 -8 -7 -6 -5 -5 -5 -5 -4 -4 -4 -4 -4 -3 -3 ------------- Run | Scr Mat Mat Min Exi Min Mat Fac Fac Fac Upp Upp Zhi Pro Fac Upp Upp War Pro Res Turns Passed 16430 | . 675 113 698 925 416 497 1458 1025 1196 467 681 271 1161 1972 722 805 1525 763 1060 Spaces Moved 9320 | 1 396 45 427 561 245 271 771 536 597 243 362 153 623 741 420 508 869 620 931 Core 230 | . . . . . . . . . . . . . . . . . 2 3 225 Treads 5679 | . 202 45 427 561 245 271 771 536 597 243 362 153 623 522 . . . . 121 Legs 2853 | 1 194 . . . . . . . . . . . . 219 420 508 867 617 27 Wheels . | . . . . . . . . . . . . . . . . . . . . Hover 515 | . . . . . . . . . . . . . . . . . . . 515 Flight 43 | . . . . . . . . . . . . . . . . . . . 43 Fastest Speed 37 | 120 120 160 160 160 160 160 170 170 170 170 170 170 160 120 150 120 50 50 37 Average Speed 148 | 120 144 163 160 160 160 167 170 170 170 170 170 170 167 149 150 149 148 119 68 Slowest Speed 700 | 120 180 180 160 160 160 180 170 170 170 170 170 170 190 210 150 150 300 120 700 Overloaded Moves . | . . . . . . . . . . . . . . . . . . . . Propulsion Burnouts . | . . . . . . . . . . . . . . . . . . . . Robots Hopped . | . . . . . . . . . . . . . . . . . . . . Cave-ins Triggered 2 | . . . . . . . . . . . . . . . . . 2 . . Teleports 1 | . . . . . . . . . . . . . . 1 . . . . . Exploration Rate (%) 51 | 1 62 10 75 93 86 34 20 14 21 49 62 61 69 20 71 76 95 84 31 Regions Visited 19 Branch Regions 11 Pre-discovered Areas 4 | . . . 1 . . . . . . . . . 1 . 1 1 . . . Known Exits Taken 16 | . . 1 1 1 1 1 1 1 1 1 1 1 1 1 1 1 . 1 . Unknown Exits Taken 3 | 1 1 . . . . . . . . . . . . . . . 1 . . Scrap Searched 17 | . . . . . 1 . . . . 1 4 . 4 . 3 3 . 1 . Spaces Dug 21 | . 7 . . . . . . 7 . . . . . . . . 2 . 5 Terrain Destroyed 1160 | . 38 30 23 9 15 . 73 66 24 9 84 . 101 120 188 95 97 . 188 Melee 14 | . . . . . . . . 7 . . . . . . . . 2 . 5 Projectile 77 | . . . . . . . 1 . 5 9 . . 7 14 6 1 20 . 14 AOE 1069 | . 38 30 23 9 15 . 72 59 19 . 84 . 94 106 182 94 75 . 169 Terrain Rammed . | . . . . . . . . . . . . . . . . . . . . Walls Destroyed . | . . . . . . . . . . . . . . . . . . . . Machines Disabled . | . . . . . . . . . . . . . . . . . . . . Actions | -11 -10 -9 -9 -9 -8 -8 -7 -6 -5 -5 -5 -5 -4 -4 -4 -4 -4 -3 -3 --------- Run | Scr Mat Mat Min Exi Min Mat Fac Fac Fac Upp Upp Zhi Pro Fac Upp Upp War Pro Res Total 11043 | . 458 70 434 585 257 299 863 609 721 282 413 165 711 1287 488 526 1029 636 1210 Wait 837 | . 17 6 . 5 . 9 24 32 72 28 41 . 33 297 47 . 97 . 129 Move 9300 | . 395 44 426 560 244 270 770 535 596 242 361 152 622 740 419 507 867 619 931 Hop . | . . . . . . . . . . . . . . . . . . . . Pick Up 129 | . 9 4 1 5 1 6 14 6 8 1 . 3 9 31 3 4 8 6 10 Fast Attach 47 | . 1 . . 1 . 1 2 1 1 . . 3 . 5 . . . . 32 Attach 81 | . . 3 . 1 3 2 3 1 3 1 . 2 10 26 4 3 11 5 3 Detach 6 | . . . . . . . 1 . . . . 1 2 2 . . . . . Swap 74 | . 9 4 4 5 3 3 6 7 6 1 . . 4 6 2 . 4 . 10 Drop 106 | . 6 2 . 6 . 1 13 7 9 2 . 4 12 15 2 . 3 2 22 Fire 405 | . 21 7 3 2 6 7 30 13 26 6 7 . 19 147 11 12 36 . 52 Melee 57 | . . . . . . . . 7 . 1 4 . . 18 . . 2 4 21 Ram . | . . . . . . . . . . . . . . . . . . . . Kick . | . . . . . . . . . . . . . . . . . . . . Crush . | . . . . . . . . . . . . . . . . . . . . Escape Stasis 1 | . . . . . . . . . . . . . . . . . 1 . . Rewire . | . . . . . . . . . . . . . . . . . . . . Trap . | . . . . . . . . . . . . . . . . . . . . Miscellaneous . | . . . . . . . . . . . . . . . . . . . . Route ------- -11/Scrapyard -10/Materials -9/Materials -9/Mines (discovered 2 exits: *Mat / *Exi) -9/Exiles (discovered 2 exits: *Min x2) -8/Mines -8/Materials -7/Factory -6/Factory -5/Factory -5/Upper Caves -5/Upper Caves (discovered 2 exits: *Fac / *Zhi) -5/Zhirov -4/Proximity Caves -4/Factory -4/Upper Caves -4/Upper Caves (discovered 2 exits: *Res / *War) -4/Warlord -3/Proximity Caves -3/Research (discovered 1 exit: [*Res]) History --------- Turn | Location | Event 1 | -11/Scrapyard | Discovered new exit (range 0) 1 | -11/Scrapyard | Entered Materials 307 | -10/Materials | Build established: Mutant 456 | -10/Materials | Destroyed 7 combat bots 463 | -10/Materials | Discovered new exit (range 15) 676 | -10/Materials | Entered another Materials area 676 | -9/Materials | Evolved 2 slots: Propulsion x1, Utility x1 731 | -9/Materials | Discovered new exit (range 15) 787 | -9/Materials | Identified exit to Mines 789 | -9/Materials | Entered Mines 841 | -9/Mines | Found a damaged Exp. Sensor Array with a note attached 844 | -9/Mines | Found Prototype Device 845 | -9/Mines | Identified Exp. Sensor Array 1364 | -9/Mines | Discovered new exit (range 6) 1373 | -9/Mines | Identified exit to Materials 1403 | -9/Mines | Learned location of Storage (-9) 1481 | -9/Mines | Deemed a non-threat by the Exiles lab entrance 1481 | -9/Mines | Discovered new exit (range 5) 1485 | -9/Mines | Identified exit to Exiles 1487 | -9/Mines | Entered Exiles 1567 | -9/Exiles | Discovered new exit (range 15) 1587 | -9/Exiles | Met 8R-AWN 1614 | -9/Exiles | Met EX-HEX 1675 | -9/Exiles | Met EX-BIN 1697 | -9/Exiles | Aligned with FarCom system 1699 | -9/Exiles | Given EX-Vault access code 1803 | -9/Exiles | Opened EX-Vault 1815 | -9/Exiles | Found Prototype Device 1816 | -9/Exiles | Identified Trap Reconfigurator 1822 | -9/Exiles | Found Prototype Processor 1822 | -9/Exiles | Identified 0b10 Alert Chip 1831 | -9/Exiles | Found Prototype Special Weapon 1832 | -9/Exiles | Identified Field Lobotomy Kit 1868 | -9/Exiles | Warned to stay clear of 0b10 Research branches 1913 | -9/Exiles | Met EX-DEC 2020 | -9/Exiles | Discovered new exit (range 14) 2139 | -9/Exiles | Visited The Gauntlet 2360 | -9/Exiles | Attacked by the Exiles 2411 | -9/Exiles | Identified exit to Mines 2412 | -9/Exiles | Left Exiles lab with Field Lobotomy Kit 2412 | -9/Exiles | Entered Mines 2441 | -8/Mines | Lost 4 parts (1p2n1w) 2816 | -8/Mines | Discovered exit to Materials (range 5) 2828 | -8/Mines | Entered Materials 2828 | -8/Materials | Evolved 2 slots: Propulsion x1, Utility x1 3255 | -8/Materials | Discovered new exit (range 16) 3321 | -8/Materials | Identified exit to Factory 3325 | -8/Materials | Entered Factory 3325 | -7/Factory | Evolved 2 slots: Utility x2 4728 | -7/Factory | Discovered new exit (range 15) 4751 | -7/Factory | Identified exit to Factory 4783 | -7/Factory | Entered another Factory area 4783 | -6/Factory | Evolved 2 slots: Utility x1, Weapon x1 5195 | -6/Factory | Fabricated G-50 Soldier? 5356 | -6/Factory | Build established: Skirmisher 5603 | -6/Factory | Discovered new exit (range 14) 5628 | -6/Factory | P-60 Hacker assimilated allied Soldier 5a 5639 | -6/Factory | Identified exit to Factory 5808 | -6/Factory | Entered another Factory area 5808 | -5/Factory | Accompanied by 1 ally 5808 | -5/Factory | Evolved 2 slots: Utility x2 6283 | -5/Factory | Destroyed 7 combat bots 6739 | -5/Factory | Build established: Hacker-Skirmisher 6988 | -5/Factory | Discovered new exit (range 3) 7001 | -5/Factory | Identified exit to Upper Caves 7004 | -5/Factory | Entered Upper Caves 7013 | -5/Upper Caves | Learned Factory garrison access intel 7140 | -5/Upper Caves | Learned Factory terminal intel 7419 | -5/Upper Caves | Discovered new exit (range 5) 7425 | -5/Upper Caves | Identified exit to Upper Caves 7439 | -5/Upper Caves | Acquired the password to a Derelict Tinkerer's latest research 7451 | -5/Upper Caves | Found Prototype Special Weapon 7471 | -5/Upper Caves | Entered another Upper Caves area 7472 | -5/Upper Caves | Encountered a Warlord checkpoint 7477 | -5/Upper Caves | Discovered new exit (range 15) 7499 | -5/Upper Caves | Identified exit to Factory 7571 | -5/Upper Caves | Build established: Hacker-Mutant 8032 | -5/Upper Caves | Spotted JK-QT1(f) 8033 | -5/Upper Caves | Spotted OI-3HC(f) 8033 | -5/Upper Caves | Spotted L2-TPO(f) 8034 | -5/Upper Caves | Encountered a Master Thief 8034 | -5/Upper Caves | Encountered a Master Thief 8034 | -5/Upper Caves | Encountered a Master Thief 8035 | -5/Upper Caves | Field Lobotomy Kit stolen by Master Thief 8037 | -5/Upper Caves | Destroyed OI-3HC(f) 8047 | -5/Upper Caves | Destroyed JK-QT1(f) 8128 | -5/Upper Caves | Discovered new exit (range 15) 8150 | -5/Upper Caves | Identified exit to Zhirov 8152 | -5/Upper Caves | Entered Zhirov 8152 | -5/Zhirov | Discovered new exit (range 3) 8154 | -5/Zhirov | Identified exit to Proximity Caves 8280 | -5/Zhirov | Found Alien Artifact 8282 | -5/Zhirov | Identified Integrated Reactor 8282 | -5/Zhirov | Installed Integrated Reactor, increased core energy generation (+10) 8361 | -5/Zhirov | Found Alien Artifact 8423 | -5/Zhirov | Entered Proximity Caves 8721 | -4/Proximity Caves | Build established: Hacker-Bomber 9181 | -4/Proximity Caves | Spotted B-86 Titan 9196 | -4/Proximity Caves | Destroyed B-86 Titan 9361 | -4/Proximity Caves | Learned 12 Research zone layouts 9554 | -4/Proximity Caves | Discovered exit to Factory (range 13) 9584 | -4/Proximity Caves | Entered Factory 9584 | -4/Factory | Evolved 2 slots: Utility x2 9585 | -4/Factory | Loaded intel: 20 terminal locations 9586 | -4/Factory | Loaded intel: 4 garrison access locations 9615 | -4/Factory | Identified Molecular Deconstructor 10632 | -4/Factory | First assault squad dispatched 10682 | -4/Factory | Lost 4 parts (2u2w) 10817 | -4/Factory | Lost 3 parts (1n2w) 10824 | -4/Factory | Identified Transdimensional Reconstructor 10824 | -4/Factory | Warped through subspace 10868 | -4/Factory | Destroyed 10 combat bots 11265 | -4/Factory | Fabricated A-02 Transporter (x1) 11457 | -4/Factory | Discovered new exit (range 14) 11512 | -4/Factory | Identified exit to Upper Caves 11556 | -4/Factory | Entered Upper Caves 11567 | -4/Upper Caves | Learned Research stockpile data 11595 | -4/Upper Caves | Learned location of Testing (-3) 11666 | -4/Upper Caves | Spotted B-86 Titan 11747 | -4/Upper Caves | Encountered a Warlord checkpoint 12262 | -4/Upper Caves | Discovered new exit (range 8) 12277 | -4/Upper Caves | Identified exit to Upper Caves 12278 | -4/Upper Caves | Entered another Upper Caves area 12338 | -4/Upper Caves | Discovered new exit (range 4) 12343 | -4/Upper Caves | Identified exit to Research 12391 | -4/Upper Caves | Attracted the attention of an 0b10 checkpoint 12468 | -4/Upper Caves | Identified exit to Warlord 12486 | -4/Upper Caves | Ambushed by wild Derelicts 13067 | -4/Upper Caves | Learned location of Armory (-4) 13083 | -4/Upper Caves | Entered Warlord 13618 | -4/Warlord | Met Warlord 13639 | -4/Warlord | Warlord's base attacked by MAIN.C 13939 | -4/Warlord | Found Signal Generator 13989 | -4/Warlord | Warlord forces counterattacked 14182 | -4/Warlord | Spotted Executioner 14186 | -4/Warlord | Spotted Striker 14187 | -4/Warlord | Core integrity fell below 50% 14200 | -4/Warlord | Destroyed Striker 14224 | -4/Warlord | Lost 3 parts (1n1u1w) 14247 | -4/Warlord | Found Prototype Processor 14257 | -4/Warlord | Crushed by falling debris 14258 | -4/Warlord | Identified Exp. Core Analyzer 14288 | -4/Warlord | Lost 3 parts (3u) 14349 | -4/Warlord | Found Prototype Energy Gun 14350 | -4/Warlord | Identified Vortex Shotgun 14353 | -4/Warlord | Found Vortex Shotgun 14506 | -4/Warlord | Discovered new exit (range 17) 14506 | -4/Warlord | Opened side exit 14524 | -4/Warlord | Spotted Striker 14552 | -4/Warlord | Destroyed Striker 14580 | -4/Warlord | Spotted Executioner 14598 | -4/Warlord | Crushed by falling debris 14598 | -4/Warlord | Spotted Executioner 14605 | -4/Warlord | Core integrity fell below 20% 14608 | -4/Warlord | Entered Proximity Caves 14636 | -3/Proximity Caves | Lost 17 parts (1p5n6u5w) 14890 | -3/Proximity Caves | Build established: Hacker-Mutant 15362 | -3/Proximity Caves | Discovered exit to Research (range 9) 15371 | -3/Proximity Caves | Entered Research 15371 | -3/Research | Evolved 2 slots: Propulsion x2 15486 | -3/Research | Discovered new exit (range 20) 15781 | -3/Research | System corruption reached 10% 15811 | -3/Research | Lost 9 parts (1p2n3u3w) 15831 | -3/Research | Found Fusion Bomb Launcher 16148 | -3/Research | First assault squad dispatched 16199 | -3/Research | Spotted B-86 Titan 16211 | -3/Research | Found Enh. Force Lance 16291 | -3/Research | Core integrity fell below 50% 16321 | -3/Research | Lost 9 parts (1p5n2u1w) 16323 | -3/Research | Core integrity fell below 20% 16431 | -3/Research | Destroyed by G-67 Veteran with Plasma Rifle Last Messages --------------- 16317_ K519WEFRVGEY>HGY9Q MHS4 , ONHY32S5ZQ 16319_ K-01 Serf destroyed. 16322_ Acquired 12 matter. 16322_ Adv. Targeting Computer destroyed. 16322_ Enh. Force Lance destroyed. 16326_ Triggered Blade Trap. 16326_ Massive razor-sharp blades shoot up from within the floor. 16326_ Exp. Optical Array severed. 16326_ Adv. Target Analyzer severed. 16326_ Slug penetrates Subatomic Condenser. 16342_ System corrupted: Matter fused (-7). 16358_ Acquired Cloaking Device. 16371_ ALERT: Rogue bot located, Programmers report to Research Zone 2J. 16378_ System corrupted: Matter fused (-5). 16410_ System corrupted: Matter fused (-7). 16419_ ALERT: Significant disruption in Zone 5K, assault force dispatched. 16425_ System corrupted: Component data lost. 16426_ Cloaking Device destroyed. 16427_ P-80 Master destroyed. 16431_ Destroyed Electrolaser. Map ----- +----------------------------------------------------+ | ?????????#+#??????????????? | | ????????? ????????????""? | | ????????? ????????????""" | | ????????? ?????????"""""" | | ????????? ?????# | | ????????? !?????# | | ????????? ?????# """""" | | ????????? ??????????""""? | | ????????? ??????????????? | | ?????????#/#??????????????? | | ?????????# #??????????????? | | ?????????# #??????????????? | | ????##???# #??????????????? | | ??## ##### ################ | | ## # R | | # # | | # # | | # # | | # gg # u | | # | | """"""" | | """"""" | | """"""" | | * # | | # | | # @ #?# | | # ## | | # ### | | ## ##?## ############## | | ?# #???# # #? | | ?# = #???# + #? | | ?######???# # #? | | ??????????# # #? | | ??????????# # #? | | ??????????# # #? | | ??????????# # """T""" #? | | ??????????# ############## | | ??????????# ## | | ??????????# ## | | ??????????# ## """Y""" | | ??????????# ## """"""" | | ??????????# ## | | ?????????## ## | | ?????????# ##+######+### | | ?????????# | | ?????????# ?? | | ?????????# ###########?? | | ??????#####+#####????####?? | | ??????# #????# ?? | | ??????# #????# ?? | +----------------------------------------------------+ Best States ------------- Heat Dissipation 93 Coolant Potential 65 Energy Generation 33 Energy Capacity 1150 Matter Stores 300 Matter Capacity 300 Sight Range 23 Robot Scan Range 30 Terrain Scan Range 18 Terrain Scan Density 10 Jamming Range 16 Cloak Strength 2 Corruption Prevention 20 Armor Coverage 600 Resistance: KI 45 Resistance: TH 20 Resistance: EX 20 Resistance: EM 45 Resistance: I 20 Resistance: S 20 Resistance: P 20 Evasion (%) 62 Targeting Accuracy 8 Target Analysis 8 Core Analysis 15 Recoil Reduction 6 Particle Charging 30 Offensive Hacking 24 Defensive Hacking 14 Item Schematics ----------------- Exp. Sensor Array | -8/Materials | Scanalyzed Smartbomb Launcher | -4/Factory | Scanalyzed Robot Schematics ------------------ None Fabricated ------------ G-50 Soldier | x3 | -6/Factory | Preloaded A-02 Transporter | x1 | -4/Factory | Preloaded Alien Tech Used ----------------- Integrated Reactor Transdimensional Reconstructor Achievements -------------- None Challenges ------------ None Game ------ Seed RagnarokFrostStick Manual? 0 Play Time 02:23:04 Cumulative 289.2 hours Start 2021.04.27 @ 14:17:34 End 2021.05.02 @ 17:28:35 Sessions 15 Manual Loads 0 Difficulty Adventurer Special Mode None Game No. 222 Rogue 195 Adventurer 27 Explorer 0 Win Type - Total 2 Types 1/0/0/1/0/0/0/0/0 Lore% 43 Gallery% 71 Achievement% 44 Wizard Run 0 Options --------- ASCII 0 Keyboard 0 Movement Mouse Keybinds 0 Fullscreen 1 Font 18/SmallcapsGlow Map View 76x50 Tactical HUD 1 Map Filters NONE Filters NONE Steam 1 RUN: f0f62641-ecb4-42da-badf-921e21d0b0c8